[Event "*** Titled Tuesday Blitz"]
[Site "Chess.com"]
[Date "2021.03.30"]
[Round "5"]
[White "ChelsieMonica"]
[Black "eldur16"]
[Result "0-1"]
[WhiteElo "2390"]
[BlackElo "2590"]
[TimeControl "180+1"]
[EndTime "10:56:50 PDT"]
[Termination "eldur16 won by resignation"]

1. c4 {[%clk 0:03:00.9]} 1... Nf6 {[%clk 0:02:58.5]} 2. Nf3 {[%clk 0:02:59.3]}
2... g6 {[%clk 0:02:57.4]} 3. g3 {[%clk 0:02:58.8]} 3... Bg7 {[%clk 0:02:57.3]}
4. Bg2 {[%clk 0:02:58.8]} 4... c6 {[%clk 0:02:57.5]} 5. O-O {[%clk 0:02:59]}
5... d5 {[%clk 0:02:56.7]} 6. cxd5 {[%clk 0:02:59.9]} 6... cxd5 {[%clk
0:02:56.9]} 7. d4 {[%clk 0:03:00.8]} 7... O-O {[%clk 0:02:56.8]} 8. Nc3 {[%clk
0:03:01.7]} 8... Nc6 {[%clk 0:02:56.8]} 9. h3 {[%clk 0:03:02.6]} 9... Bf5 {[%clk
0:02:53.9]} 10. Be3 {[%clk 0:03:03.5]} 10... Ne4 {[%clk 0:02:51.7]} 11. Rc1
{[%clk 0:03:03]} 11... Nxc3 {[%clk 0:02:48.7]} 12. bxc3 {[%clk 0:03:03.8]} 12...
Be4 {[%clk 0:02:47.9]} 13. Qb3 {[%clk 0:02:59.8]} 13... Na5 {[%clk 0:02:46.3]}
14. Qa4 {[%clk 0:02:51.4]} 14... Rc8 {[%clk 0:02:43.1]} 15. Nd2 {[%clk
0:02:47.6]} 15... Bxg2 {[%clk 0:02:41.8]} 16. Kxg2 {[%clk 0:02:48.5]} 16... b6
{[%clk 0:02:32.7]} 17. Rfd1 {[%clk 0:02:42.2]} 17... Qe8 {[%clk 0:02:29.6]} 18.
Qa3 {[%clk 0:02:20.2]} 18... Qd7 {[%clk 0:02:26.5]} 19. f4 {[%clk 0:02:08.8]}
19... Nc4 {[%clk 0:02:24.7]} 20. Nxc4 {[%clk 0:02:08.3]} 20... Rxc4 {[%clk
0:02:24.7]} 21. Bd2 {[%clk 0:02:06.6]} 21... Rfc8 {[%clk 0:02:23.7]} 22. Rb1
{[%clk 0:02:06.7]} 22... R8c7 {[%clk 0:02:17.2]} 23. Rb4 {[%clk 0:02:05.1]}
23... h5 {[%clk 0:02:08.2]} 24. Rxc4 {[%clk 0:01:56.3]} 24... Rxc4 {[%clk
0:02:06.8]} 25. Qb3 {[%clk 0:01:54.7]} 25... Qf5 {[%clk 0:02:05.5]} 26. h4
{[%clk 0:01:48]} 26... e6 {[%clk 0:01:59.9]} 27. Kf2 {[%clk 0:01:43.7]} 27...
Bf8 {[%clk 0:01:59.1]} 28. Qb1 {[%clk 0:01:39.9]} 28... Qh3 {[%clk 0:01:57.1]}
29. Rh1 {[%clk 0:01:38.9]} 29... Qg4 {[%clk 0:01:54.6]} 30. Qd3 {[%clk
0:01:37.5]} 30... Qf5 {[%clk 0:01:47.1]} 31. Qxf5 {[%clk 0:01:36.9]} 31... gxf5
{[%clk 0:01:46.8]} 32. Ke3 {[%clk 0:01:36.5]} 32... Bd6 {[%clk 0:01:45.4]} 33.
Rb1 {[%clk 0:01:35.8]} 33... Kf8 {[%clk 0:01:44.7]} 34. Kd3 {[%clk 0:01:35.5]}
34... Ke8 {[%clk 0:01:44.4]} 35. Kc2 {[%clk 0:01:14.9]} 35... Kd7 {[%clk
0:01:43.1]} 36. Kb3 {[%clk 0:01:14.8]} 36... b5 {[%clk 0:01:40.1]} 37. a3 {[%clk
0:01:09.6]} 37... f6 {[%clk 0:01:38.1]} 38. Rf1 {[%clk 0:01:08.7]} 38... a5
{[%clk 0:01:34.5]} 39. Rf3 {[%clk 0:01:05.8]} 39... Be7 {[%clk 0:01:18]} 40. Rf1
{[%clk 0:01:04.7]} 40... Kc7 {[%clk 0:01:16.7]} 41. Rf3 {[%clk 0:01:04.6]} 41...
Kc6 {[%clk 0:01:15]} 42. Re3 {[%clk 0:01:03.8]} 42... Kd7 {[%clk 0:01:14.3]} 43.
Rf3 {[%clk 0:01:04.3]} 43... Bd6 {[%clk 0:01:12.2]} 44. Rf1 {[%clk 0:01:03.5]}
44... Kc6 {[%clk 0:01:10.4]} 45. Rf3 {[%clk 0:01:03.5]} 45... Ra4 {[%clk
0:00:59.8]} 46. Bc1 {[%clk 0:01:02.6]} 46... Rc4 {[%clk 0:00:59]} 47. Bd2 {[%clk
0:01:02.1]} 47... b4 {[%clk 0:00:57.4]} 48. a4 {[%clk 0:00:54.3]} 48... Kd7
{[%clk 0:00:51]} 49. Rd3 {[%clk 0:00:51.1]} 49... bxc3 {[%clk 0:00:47.8]} 50.
Bxc3 {[%clk 0:00:52]} 50... Bc7 {[%clk 0:00:47.8]} 51. e3 {[%clk 0:00:48.8]}
51... Kc6 {[%clk 0:00:46.7]} 52. Bd2 {[%clk 0:00:48.7]} 52... Kd7 {[%clk
0:00:42.8]} 53. Bc3 {[%clk 0:00:41.9]} 53... Kc6 {[%clk 0:00:42.2]} 54. Bd2
{[%clk 0:00:42.2]} 54... e5 {[%clk 0:00:42.3]} 55. dxe5 {[%clk 0:00:40.3]} 55...
fxe5 {[%clk 0:00:41.8]} 56. fxe5 {[%clk 0:00:41.2]} 56... Bxe5 {[%clk
0:00:41.4]} 57. Bxa5 {[%clk 0:00:37.8]} 57... Rc1 {[%clk 0:00:33.9]} 58. Bd8
{[%clk 0:00:29.8]} 58... Rg1 {[%clk 0:00:32.8]} 59. a5 {[%clk 0:00:25.3]} 59...
Rxg3 {[%clk 0:00:29.8]} 60. a6 {[%clk 0:00:24.2]} 60... f4 {[%clk 0:00:26.1]}
61. Bg5 {[%clk 0:00:18.7]} 61... f3 {[%clk 0:00:21.3]} 62. Rd2 {[%clk
0:00:17.4]} 62... Rg2 {[%clk 0:00:20.2]} 63. Rd1 {[%clk 0:00:17.9]} 63... f2
{[%clk 0:00:20.2]} 64. Rf1 {[%clk 0:00:18]} 64... Bg3 {[%clk 0:00:20.1]} 65. a7
{[%clk 0:00:13.4]} 65... Kb7 {[%clk 0:00:19.5]} 66. Ra1 {[%clk 0:00:13.1]} 66...
Ka8 {[%clk 0:00:18.4]} 67. Bf4 {[%clk 0:00:11.8]} 67... Bxf4 {[%clk 0:00:17.8]}
68. exf4 {[%clk 0:00:11.4]} 68... Rg1 {[%clk 0:00:18]} 69. Ra6 {[%clk 0:00:07]}
69... f1=Q {[%clk 0:00:17.4]} 0-1

[Event "*** Titled Tuesday Blitz"]
[Site "Chess.com"]
[Date "2021.03.30"]
[Round "5"]
[White "MasterKroket"]
[Black "fyall777"]
[Result "1-0"]
[WhiteElo "2522"]
[BlackElo "2378"]
[TimeControl "180+1"]
[EndTime "10:56:50 PDT"]
[Termination "MasterKroket won on time"]

1. d4 {[%clk 0:03:00.9]} 1... Nf6 {[%clk 0:02:59.2]} 2. c4 {[%clk 0:03:01]} 2...
e6 {[%clk 0:02:59.8]} 3. Nf3 {[%clk 0:03:01.2]} 3... Bb4+ {[%clk 0:03:00.2]} 4.
Bd2 {[%clk 0:03:01.4]} 4... c5 {[%clk 0:03:00.5]} 5. Nc3 {[%clk 0:02:57.6]} 5...
cxd4 {[%clk 0:02:56]} 6. Nxd4 {[%clk 0:02:57.8]} 6... Nc6 {[%clk 0:02:56.3]} 7.
Nxc6 {[%clk 0:02:55.8]} 7... dxc6 {[%clk 0:02:55.7]} 8. g3 {[%clk 0:02:52.7]}
8... e5 {[%clk 0:02:55.2]} 9. Bg2 {[%clk 0:02:52.5]} 9... Be6 {[%clk 0:02:52.5]}
10. Qb3 {[%clk 0:02:46.8]} 10... Qe7 {[%clk 0:02:31.2]} 11. a3 {[%clk
0:02:34.6]} 11... Ba5 {[%clk 0:02:26.7]} 12. Qa4 {[%clk 0:02:10.3]} 12... Bb6
{[%clk 0:02:18.3]} 13. Bxc6+ {[%clk 0:01:54.9]} 13... Kf8 {[%clk 0:01:48.7]} 14.
Nd5 {[%clk 0:01:29.6]} 14... Bxf2+ {[%clk 0:01:15.5]} 15. Kxf2 {[%clk
0:01:21.4]} 15... Qc5+ {[%clk 0:01:15.1]} 16. Ke1 {[%clk 0:01:12]} 16... Qxc6
{[%clk 0:01:12]} 17. Bb4+ {[%clk 0:01:06.2]} 17... Ke8 {[%clk 0:01:09.5]} 18.
Qxc6+ {[%clk 0:01:05.8]} 18... bxc6 {[%clk 0:01:09.2]} 19. Nc7+ {[%clk
0:01:06.3]} 19... Kd7 {[%clk 0:01:09.7]} 20. Nxa8 {[%clk 0:01:06.1]} 20... Bxc4
{[%clk 0:01:05.4]} 21. Rc1 {[%clk 0:00:33.2]} 21... Bd5 {[%clk 0:01:03.6]} 22.
Rf1 {[%clk 0:00:33.1]} 22... Rxa8 {[%clk 0:01:01.1]} 23. Bd2 {[%clk 0:00:30.8]}
23... Ke6 {[%clk 0:00:58]} 24. Rc5 {[%clk 0:00:27.7]} 24... Ne4 {[%clk 0:00:53]}
25. Ra5 {[%clk 0:00:27.7]} 25... Nd6 {[%clk 0:00:51.8]} 26. Be3 {[%clk
0:00:21.2]} 26... a6 {[%clk 0:00:50.5]} 27. Bc1 {[%clk 0:00:11.1]} 27... f5
{[%clk 0:00:34.5]} 28. Ra4 {[%clk 0:00:10.6]} 28... Bc4 {[%clk 0:00:29.1]} 29.
Rb4 {[%clk 0:00:10.9]} 29... a5 {[%clk 0:00:27.3]} 30. Rb6 {[%clk 0:00:11.1]}
30... Bd5 {[%clk 0:00:18.3]} 31. Bd2 {[%clk 0:00:11.3]} 31... h6 {[%clk
0:00:15.2]} 32. Bc3 {[%clk 0:00:11.2]} 32... Nc4 {[%clk 0:00:14.7]} 33. Rb7
{[%clk 0:00:11.2]} 33... g5 {[%clk 0:00:13.9]} 34. Rh7 {[%clk 0:00:11.3]} 34...
f4 {[%clk 0:00:13]} 35. Rxh6+ {[%clk 0:00:11.6]} 35... Kf5 {[%clk 0:00:13.6]}
36. h3 {[%clk 0:00:11.7]} 36... Rb8 {[%clk 0:00:12.4]} 37. g4+ {[%clk
0:00:11.2]} 37... Ke4 {[%clk 0:00:12.4]} 38. Rg6 {[%clk 0:00:11.2]} 38... Nxb2
{[%clk 0:00:12.4]} 39. Bxb2 {[%clk 0:00:10.9]} 39... Rxb2 {[%clk 0:00:11.6]} 40.
Kf2 {[%clk 0:00:11.5]} 40... Bc4 {[%clk 0:00:11.4]} 41. Re1 {[%clk 0:00:11.1]}
41... f3 {[%clk 0:00:11.5]} 42. Rxg5 {[%clk 0:00:09.8]} 42... Bxe2 {[%clk
0:00:12.1]} 43. Kg3 {[%clk 0:00:08.6]} 43... Ke3 {[%clk 0:00:11.8]} 44. Rxe5+
{[%clk 0:00:08.8]} 44... Kd2 {[%clk 0:00:12.4]} 45. Ra1 {[%clk 0:00:07.2]} 45...
Rb3 {[%clk 0:00:12.7]} 46. Kh4 {[%clk 0:00:06.3]} 46... f2 {[%clk 0:00:12.6]}
47. Rf5 {[%clk 0:00:06.8]} 47... Rf3 {[%clk 0:00:12.7]} 48. Ra2+ {[%clk
0:00:05.4]} 48... Ke1 {[%clk 0:00:12.4]} 49. Ra1+ {[%clk 0:00:05.7]} 49... Kd2
{[%clk 0:00:11.9]} 50. Ra2+ {[%clk 0:00:05.8]} 50... Kd3 {[%clk 0:00:12.3]} 51.
Ra1 {[%clk 0:00:05.6]} 51... Rxf5 {[%clk 0:00:11.2]} 52. gxf5 {[%clk 0:00:06]}
52... Ke4 {[%clk 0:00:08.1]} 53. Kg5 {[%clk 0:00:06.6]} 53... f1=Q {[%clk
0:00:07.6]} 54. Rxf1 {[%clk 0:00:07.1]} 54... Bxf1 {[%clk 0:00:08.3]} 55. f6
{[%clk 0:00:08]} 55... Bc4 {[%clk 0:00:08.9]} 56. Kg6 {[%clk 0:00:08.9]} 56...
Kf4 {[%clk 0:00:08.5]} 57. f7 {[%clk 0:00:09.8]} 57... Bxf7+ {[%clk 0:00:08.6]}
58. Kxf7 {[%clk 0:00:10.5]} 58... c5 {[%clk 0:00:09.5]} 59. Ke6 {[%clk
0:00:10.8]} 59... Kg3 {[%clk 0:00:10]} 60. Kd5 {[%clk 0:00:11.3]} 60... Kxh3
{[%clk 0:00:10.4]} 61. Kxc5 {[%clk 0:00:12]} 61... Kg4 {[%clk 0:00:11.1]} 62.
Kb5 {[%clk 0:00:12.8]} 62... Kf5 {[%clk 0:00:11.9]} 63. Kxa5 {[%clk 0:00:13.6]}
63... Ke6 {[%clk 0:00:12.6]} 64. Kb6 {[%clk 0:00:14.4]} 64... Kd7 {[%clk
0:00:13.5]} 65. Kb7 {[%clk 0:00:15.1]} 65... Kd6 {[%clk 0:00:14.1]} 66. a4
{[%clk 0:00:16]} 66... Kc5 {[%clk 0:00:15]} 67. a5 {[%clk 0:00:16.9]} 67... Kb4
{[%clk 0:00:15.7]} 68. a6 {[%clk 0:00:17.8]} 1-0

[Event "*** Titled Tuesday Blitz"]
[Site "Chess.com"]
[Date "2021.03.30"]
[Round "5"]
[White "crazy_but_lazy"]
[Black "Cocaino74"]
[Result "0-1"]
[WhiteElo "2435"]
[BlackElo "2285"]
[TimeControl "180+1"]
[EndTime "10:56:52 PDT"]
[Termination "Cocaino74 won by checkmate"]

1. e4 {[%clk 0:03:00.9]} 1... c5 {[%clk 0:02:54.6]} 2. Nf3 {[%clk 0:03:00.5]}
2... Nc6 {[%clk 0:02:55.1]} 3. Bb5 {[%clk 0:02:59.7]} 3... g6 {[%clk 0:02:55.2]}
4. Bxc6 {[%clk 0:02:57.8]} 4... bxc6 {[%clk 0:02:56.1]} 5. d3 {[%clk 0:02:58.1]}
5... Bg7 {[%clk 0:02:54]} 6. O-O {[%clk 0:02:57.2]} 6... Nf6 {[%clk 0:02:49.5]}
7. c3 {[%clk 0:02:57.3]} 7... O-O {[%clk 0:02:49.6]} 8. h3 {[%clk 0:02:57.6]}
8... Rb8 {[%clk 0:02:48.6]} 9. Re1 {[%clk 0:02:57.7]} 9... d6 {[%clk 0:02:47.7]}
10. Nbd2 {[%clk 0:02:54.2]} 10... Nh5 {[%clk 0:02:39.3]} 11. Nf1 {[%clk
0:02:43.8]} 11... e5 {[%clk 0:02:37.4]} 12. Qa4 {[%clk 0:02:37.8]} 12... Nf4
{[%clk 0:02:29.3]} 13. Rd1 {[%clk 0:01:58.4]} 13... Ne2+ {[%clk 0:02:14.7]} 14.
Kh1 {[%clk 0:01:55.9]} 14... Nxc1 {[%clk 0:02:14.9]} 15. Rdxc1 {[%clk
0:01:47.6]} 15... Rxb2 {[%clk 0:02:15.1]} 16. Rc2 {[%clk 0:01:48]} 16... Qb6
{[%clk 0:02:09.3]} 17. Rac1 {[%clk 0:01:26.4]} 17... Rxc2 {[%clk 0:02:04.5]} 18.
Qxc2 {[%clk 0:01:25.9]} 18... Be6 {[%clk 0:01:59.4]} 19. c4 {[%clk 0:01:26]}
19... Rb8 {[%clk 0:01:56]} 20. Ne3 {[%clk 0:01:25.7]} 20... Bh6 {[%clk
0:01:55.4]} 21. Nd2 {[%clk 0:01:20.3]} 21... Bxe3 {[%clk 0:01:43.6]} 22. fxe3
{[%clk 0:01:21.2]} 22... Qb2 {[%clk 0:01:43.2]} 23. Nb3 {[%clk 0:01:21.3]} 23...
Qxc2 {[%clk 0:01:32.7]} 24. Rxc2 {[%clk 0:01:22.2]} 24... f5 {[%clk 0:01:29.7]}
25. exf5 {[%clk 0:01:21.5]} 25... Bxf5 {[%clk 0:01:25.7]} 26. Rd2 {[%clk
0:01:20.6]} 26... Rb4 {[%clk 0:01:03]} 27. Kh2 {[%clk 0:01:10.7]} 27... Ra4
{[%clk 0:00:54.9]} 28. g4 {[%clk 0:00:52]} 28... Be6 {[%clk 0:00:47.8]} 29. Kg3
{[%clk 0:00:50.9]} 29... Ra3 {[%clk 0:00:38.7]} 30. Kf2 {[%clk 0:00:38.4]} 30...
Kg7 {[%clk 0:00:29.8]} 31. Rb2 {[%clk 0:00:31.4]} 31... a5 {[%clk 0:00:27.6]}
32. Ke2 {[%clk 0:00:30.5]} 32... e4 {[%clk 0:00:26.6]} 33. Kd2 {[%clk
0:00:10.6]} 33... a4 {[%clk 0:00:16]} 34. Na5 {[%clk 0:00:08.9]} 34... Rxd3+
{[%clk 0:00:15.3]} 35. Ke2 {[%clk 0:00:09.5]} 35... Rc3 {[%clk 0:00:12.6]} 36.
Rb7+ {[%clk 0:00:07.6]} 36... Kh6 {[%clk 0:00:11.6]} 37. Nxc6 {[%clk 0:00:08.5]}
37... Bxc4+ {[%clk 0:00:09.9]} 38. Kf2 {[%clk 0:00:09]} 38... Rc2+ {[%clk
0:00:07.9]} 39. Kg3 {[%clk 0:00:09.5]} 39... Re2 {[%clk 0:00:07]} 40. h4 {[%clk
0:00:09.3]} 40... g5 {[%clk 0:00:04]} 41. hxg5+ {[%clk 0:00:06.2]} 41... Kxg5
{[%clk 0:00:03.6]} 42. Rg7+ {[%clk 0:00:07.1]} 42... Kf6 {[%clk 0:00:03.7]} 43.
Rxh7 {[%clk 0:00:07.3]} 43... Rxe3+ {[%clk 0:00:04]} 44. Kf4 {[%clk 0:00:07.9]}
44... Rf3+ {[%clk 0:00:04.4]} 45. Kxe4 {[%clk 0:00:07.7]} 45... Bd3+ {[%clk
0:00:04.7]} 46. Kxf3 {[%clk 0:00:08.3]} 46... Bxh7 {[%clk 0:00:05.3]} 47. Kf4
{[%clk 0:00:09.2]} 47... d5 {[%clk 0:00:04.8]} 48. g5+ {[%clk 0:00:09.8]} 48...
Ke6 {[%clk 0:00:04.5]} 49. Ne5 {[%clk 0:00:08.6]} 49... a3 {[%clk 0:00:03.5]}
50. g6 {[%clk 0:00:08.6]} 50... Bg8 {[%clk 0:00:03.7]} 51. Nd3 {[%clk
0:00:07.5]} 51... c4 {[%clk 0:00:03.6]} 52. Nb4 {[%clk 0:00:07.4]} 52... d4
{[%clk 0:00:02.7]} 53. Kg5 {[%clk 0:00:06.4]} 53... d3 {[%clk 0:00:03]} 54. Nc6
{[%clk 0:00:05.4]} 54... d2 {[%clk 0:00:03.1]} 55. Nd4+ {[%clk 0:00:06.3]} 55...
Kd5 {[%clk 0:00:03.3]} 56. Nf3 {[%clk 0:00:07.2]} 56... c3 {[%clk 0:00:03.1]}
57. Nxd2 {[%clk 0:00:08.1]} 57... cxd2 {[%clk 0:00:03.2]} 58. Kh6 {[%clk
0:00:09]} 58... d1=Q {[%clk 0:00:03.9]} 59. Kg7 {[%clk 0:00:09.9]} 59... Be6
{[%clk 0:00:04.2]} 60. Kf8 {[%clk 0:00:10.2]} 60... Kd6 {[%clk 0:00:05.1]} 61.
g7 {[%clk 0:00:10.7]} 61... Bd5 {[%clk 0:00:05.6]} 62. g8=Q {[%clk 0:00:11]}
62... Bxg8 {[%clk 0:00:06.1]} 63. Kg7 {[%clk 0:00:11.9]} 63... Qe2 {[%clk
0:00:06.1]} 64. Kh8 {[%clk 0:00:12.8]} 64... Qxa2 {[%clk 0:00:07]} 65. Kg7
{[%clk 0:00:13.2]} 65... Qg2+ {[%clk 0:00:06.9]} 66. Kh8 {[%clk 0:00:14.1]}
66... Be6 {[%clk 0:00:05.5]} 67. Kh7 {[%clk 0:00:14.2]} 67... Qg5 {[%clk
0:00:06]} 68. Kh8 {[%clk 0:00:14.3]} 68... Qg8# {[%clk 0:00:06.9]} 0-1

[Event "*** Titled Tuesday Blitz"]
[Site "Chess.com"]
[Date "2021.03.30"]
[Round "5"]
[White "Sam_ChessMood"]
[Black "Nesty_Javi_Chess"]
[Result "1-0"]
[WhiteElo "2866"]
[BlackElo "2617"]
[TimeControl "180+1"]
[EndTime "10:56:59 PDT"]
[Termination "Sam_ChessMood won by resignation"]

1. Nf3 {[%clk 0:03:00.9]} 1... Nf6 {[%clk 0:02:58.6]} 2. d4 {[%clk 0:03:00.6]}
2... g6 {[%clk 0:02:59.5]} 3. Nbd2 {[%clk 0:03:00.3]} 3... d5 {[%clk 0:02:59.3]}
4. e3 {[%clk 0:02:59.9]} 4... Bg7 {[%clk 0:03:00.2]} 5. b4 {[%clk 0:02:59.7]}
5... O-O {[%clk 0:03:01.1]} 6. Be2 {[%clk 0:02:58.6]} 6... b6 {[%clk 0:03:01.3]}
7. O-O {[%clk 0:02:55.9]} 7... Bb7 {[%clk 0:03:00.6]} 8. Bb2 {[%clk 0:02:55.4]}
8... Nbd7 {[%clk 0:03:00.3]} 9. c4 {[%clk 0:02:55.7]} 9... c5 {[%clk 0:02:52.7]}
10. dxc5 {[%clk 0:02:55.5]} 10... bxc5 {[%clk 0:02:53.6]} 11. b5 {[%clk
0:02:56]} 11... e6 {[%clk 0:02:48.9]} 12. a4 {[%clk 0:02:54.5]} 12... Qe7 {[%clk
0:02:42.5]} 13. a5 {[%clk 0:02:52.3]} 13... Rac8 {[%clk 0:02:41.8]} 14. Qb3
{[%clk 0:02:50.7]} 14... Rfd8 {[%clk 0:02:41]} 15. Rfd1 {[%clk 0:02:50.4]} 15...
Ne4 {[%clk 0:02:23.8]} 16. Bxg7 {[%clk 0:02:49.6]} 16... Kxg7 {[%clk 0:02:24.7]}
17. Nxe4 {[%clk 0:02:46.3]} 17... dxe4 {[%clk 0:02:25.6]} 18. Qb2+ {[%clk
0:02:30.8]} 18... Kg8 {[%clk 0:02:22.6]} 19. Nd2 {[%clk 0:02:12.1]} 19... Qg5
{[%clk 0:02:20.7]} 20. Nf1 {[%clk 0:01:43.5]} 20... Ne5 {[%clk 0:02:16]} 21.
Rxd8+ {[%clk 0:01:41.1]} 21... Rxd8 {[%clk 0:02:16.9]} 22. Qc3 {[%clk
0:01:39.4]} 22... Nf3+ {[%clk 0:01:33.4]} 23. Kh1 {[%clk 0:01:35.5]} 23... Qh4
{[%clk 0:01:29.7]} 24. g3 {[%clk 0:01:12.4]} 24... Qh3 {[%clk 0:01:27]} 25. a6
{[%clk 0:01:05.6]} 25... Ba8 {[%clk 0:01:25.2]} 26. Rb1 {[%clk 0:00:28.3]} 26...
e5 {[%clk 0:00:33.6]} 27. Qc2 {[%clk 0:00:20.1]} 27... Rd2 {[%clk 0:00:12.9]}
28. Qxd2 {[%clk 0:00:20.3]} 28... Nxd2 {[%clk 0:00:13]} 29. Nxd2 {[%clk
0:00:21.2]} 29... Qe6 {[%clk 0:00:12.6]} 30. Nb3 {[%clk 0:00:21.2]} 30... Qb6
{[%clk 0:00:10]} 31. Rd1 {[%clk 0:00:21.2]} 31... Kg7 {[%clk 0:00:09.4]} 32. Kg1
{[%clk 0:00:15.2]} 32... h5 {[%clk 0:00:09.3]} 33. Nc1 {[%clk 0:00:07]} 33...
Qa5 {[%clk 0:00:06.2]} 34. Bf1 {[%clk 0:00:04.4]} 34... h4 {[%clk 0:00:05.3]}
35. Ne2 {[%clk 0:00:04]} 35... hxg3 {[%clk 0:00:05]} 36. hxg3 {[%clk 0:00:04.1]}
36... Qb4 {[%clk 0:00:03.9]} 37. Rd8 {[%clk 0:00:03.5]} 37... Qxc4 {[%clk
0:00:04]} 38. Rxa8 {[%clk 0:00:03.7]} 38... Qxb5 {[%clk 0:00:04.2]} 39. Rxa7
{[%clk 0:00:04.2]} 39... Qb6 {[%clk 0:00:04.2]} 40. Ra8 {[%clk 0:00:04.4]} 40...
Qc6 {[%clk 0:00:04.7]} 41. Rd8 {[%clk 0:00:02.6]} 41... Qxa6 {[%clk 0:00:04.9]}
42. Rd1 {[%clk 0:00:01.9]} 42... Qb7 {[%clk 0:00:04.8]} 43. Rc1 {[%clk
0:00:02.4]} 43... Qb6 {[%clk 0:00:04.2]} 44. Nc3 {[%clk 0:00:02.5]} 44... Qb2
{[%clk 0:00:04.5]} 45. Ne2 {[%clk 0:00:02.8]} 45... Qa3 {[%clk 0:00:05]} 46. Rc3
{[%clk 0:00:02.5]} 46... Qb4 {[%clk 0:00:04.7]} 47. Kg2 {[%clk 0:00:03]} 47...
f5 {[%clk 0:00:05.1]} 48. Rc1 {[%clk 0:00:02.9]} 48... Qa3 {[%clk 0:00:04.6]}
49. Rd1 {[%clk 0:00:03]} 49... Kh6 {[%clk 0:00:04.7]} 50. Rd7 {[%clk 0:00:03.1]}
50... c4 {[%clk 0:00:04.4]} 51. Rc7 {[%clk 0:00:03.5]} 51... Qb4 {[%clk
0:00:02.5]} 52. Rc6 {[%clk 0:00:03.7]} 52... Kg5 {[%clk 0:00:01.9]} 53. Nc1
{[%clk 0:00:03.9]} 53... f4 {[%clk 0:00:02.1]} 54. exf4+ {[%clk 0:00:03.7]}
54... exf4 {[%clk 0:00:03]} 55. gxf4+ {[%clk 0:00:04.3]} 55... Kxf4 {[%clk
0:00:03.5]} 56. Rxc4 {[%clk 0:00:04.5]} 56... Qa3 {[%clk 0:00:04.4]} 57. Nd3+
{[%clk 0:00:04.7]} 57... Kf5 {[%clk 0:00:04.9]} 58. Ne1 {[%clk 0:00:04.7]} 58...
Qa8 {[%clk 0:00:04]} 59. Kg1 {[%clk 0:00:03.1]} 59... Qa5 {[%clk 0:00:02.8]} 60.
Ng2 {[%clk 0:00:03.2]} 60... Ke5 {[%clk 0:00:02.6]} 61. Ne3 {[%clk 0:00:03.6]}
61... Qe1 {[%clk 0:00:02.3]} 62. Rc2 {[%clk 0:00:02.9]} 62... Qa1 {[%clk
0:00:01.8]} 63. Re2 {[%clk 0:00:02.6]} 63... Kd4 {[%clk 0:00:02.7]} 64. Nc2+
{[%clk 0:00:02.1]} 64... Ke5 {[%clk 0:00:03.4]} 65. Nxa1 {[%clk 0:00:03]} 65...
Kf4 {[%clk 0:00:04.3]} 66. Re3 {[%clk 0:00:03.5]} 1-0